[Event "Turkish Cup 2024"]
[Site "Denizli"]
[Date "2024.08.04"]
[Round "9"]
[White "Akkara, Omer"]
[Black "Ozgun, Yigit Deniz"]
[Result "1-0"]
[ECO "B50"]
[WhiteElo "1998"]
[BlackElo "1973"]
[Annotator "RC"]
[PlyCount "295"]
[EventDate "2024.08.01"]
[EventType "swiss"]
[EventCountry "TUR"]
[SourceTitle "playchess.com"]
[Source "ChessBase"]
[SourceQuality "1"]
[TimeControl "5400+30"]

1. e4 {[%emt 0:01:00]} c5 {[%emt 0:09:00]} 2. Nf3 {[%emt 0:00:00]} d6 {[%emt 0:00:30]} 3. c3 {[%emt 0:00:00]} Nf6 {[%emt 0:01:30]} 4. Be2 {[%emt 0:00:00]} g6 {[%emt 0:01:30]} 5. O-O {[%emt 0:00:00]} Bg7 {[%emt 0:00:30]} 6. Bb5+ {[%emt 0:00:30]} Nc6 {[%emt 0:01:30]} 7. d4 {[%emt 0:00:30]} O-O {[%emt 0:00:30]} 8. Re1 {[%emt 0:00:30]} cxd4 {[%emt 0:05:30]} 9. cxd4 {[%emt 0:03:30]} Qb6 {[%emt 0:00:30]} 10. Nc3 {[%emt 0:00:00]} Bg4 {[%emt 0:00:30]} 11. Be3 {[%emt 0:02:00]} Bxf3 {[%emt 0:00:30]} 12. gxf3 {[%emt 0:00:00]} Qa5 {[%emt 0:02:30]} 13. d5 {[%emt 0:09:00]} Ne5 {[%emt 0:01:30]} 14. f4 {[%emt 0:00:30]} Ned7 {[%emt 0:00:30]} 15. Bd4 {[%emt 0:19:30]} a6 {[%emt 0:05:30]} 16. Bxd7 {[%emt 0:04:30]} Nxd7 {[%emt 0:00:30]} 17. Bxg7 {[%emt 0:00:30]} Kxg7 {[%emt 0:00:30]} 18. e5 {[%emt 0:00:30]} Qb4 {[%emt 0:02:30]} 19. Re4 {[%emt 0:06:30]} Qxb2 {[%emt 0:00:00]} 20. Na4 {[%emt 0:00:30]} Qa3 {[%emt 0:01:00]} 21. Qd4 {[%emt 0:03:30]} dxe5 {[%emt 0:16:30]} 22. fxe5 {[%emt 0:00:30]} b5 {[%emt 0:10:30]} 23. e6+ {[%emt 0:06:30]} Kg8 {[%emt 0:03:30]} 24. exd7 {[%emt 0:00:30]} bxa4 {[%emt 0:01:30]} 25. Rae1 {[%emt 0:00:30]} Rad8 {[%emt 0:02:30]} 26. Rxe7 {[%emt 0:02:30]} Qd6 {[%emt 0:01:30]} 27. R1e6 {[%emt 0:04:30]} Qc7 {[%emt 0:00:30]} 28. Rc6 {[%emt 0:00:30]} Qb7 {[%emt 0:01:30]} 29. Qb6 {[%emt 0:00:30]} Qxb6 {[%emt 0:00:30]} 30. Rxb6 {[%emt 0:00:30]} Ra8 {[%emt 0:00:30]} 31. f4 {[%emt 0:01:30]} Kg7 {[%emt 0:00:30]} 32. Rc6 {[%emt 0:05:30]} Rfd8 {[%emt 0:00:30]} 33. d6 {[%emt 0:02:30]} Kf6 {[%emt 0:03:30]} 34. Kf2 {[%emt 0:00:30]} a5 {[%emt 0:01:30]} 35. Ke3 {[%emt 0:00:30]} a3 {[%emt 0:00:30]} 36. Kd3 {[%emt 0:01:30]} Ra7 {[%emt 0:00:30]} 37. Kc4 {[%emt 0:01:30]} Raxd7 {[%emt 0:00:30]} 38. Rxd7 {[%emt 0:00:30]} Rxd7 {[%emt 0:00:30]} 39. Kd5 {[%emt 0:00:00]} Rb7 {[%emt 0:00:00]} 40. Rc3 {[%emt 0:03:00]} Rb2 {[%emt 0:01:00]} 41. Rxa3 {[%emt 0:00:30]} Rxh2 {[%emt 0:00:00]} 42. Kc6 {[%emt 0:04:30]} Rc2+ {[%emt 0:00:00]} 43. Kd7 {[%emt 0:00:00]} h5 {[%emt 0:04:30]} 44. Rd3 {[%emt 0:01:41]} Kg7 {[%emt 0:06:09]} 45. Ke7 {[%emt 0:04:15]} Re2+ {[%emt 0:00:06]} 46. Kd8 {[%emt 0:00:40]} Rc2 {[%emt 0:00:02]} 47. a3 {[%emt 0:04:03]} Kf8 {[%emt 0:00:55]} 48. Rb3 {[%emt 0:01:04]} f6 {[%emt 0:00:57]} 49. Rb8 {[%emt 0:03:55]} h4 {[%emt 0:00:18]} 50. Rc8 {[%emt 0:01:25]} Rd2 {[%emt 0:00:09]} 51. d7 {[%emt 0:02:01]} g5 {[%emt 0:01:57]} 52. fxg5 {[%emt 0:02:48]} fxg5 {[%emt 0:00:07]} 53. Rc5 {[%emt 0:00:00]} Kf7 {[%emt 0:09:25]} 54. Rxg5 {[%emt 0:00:53]} h3 {[%emt 0:01:26]} 55. Rxa5 {[%emt 0:01:30]} h2 {[%emt 0:00:22]} 56. Rh5 {[%emt 0:00:15]} Ra2 {[%emt 0:00:35]} 57. Rh7+ {[%emt 0:01:01]} Kf8 {[%emt 0:00:40]} 58. Kc7 {[%emt 0:01:09]} Rc2+ {[%emt 0:00:50]} 59. Kb6 {[%emt 0:00:11]} Rd2 {[%emt 0:00:03]} 60. Rxh2 {[%emt 0:00:38]} Rxd7 {[%emt 0:00:10]} 61. a4 {[%emt 0:00:23]} Rd1 {[%emt 0:01:56]} 62. Rh5 {[%emt 0:00:14]} Ke7 {[%emt 0:00:15]} 63. Rb5 {[%emt 0:00:41]} Kd8 {[%emt 0:01:03]} 64. Kb7 {[%emt 0:00:11]} Rd7+ {[%emt 0:00:11]} 65. Kb8 {[%emt 0:00:11]} Rd4 {[%emt 0:00:56]} 66. a5 {[%emt 0:00:30]} Kd7 {[%emt 0:00:00]} 67. Rb6 {[%emt 0:00:03]} Rc4 {[%emt 0:01:10]} 68. Rb7+ {[%emt 0:01:59]} Kd6 {[%emt 0:00:17]} 69. Rb6+ {[%emt 0:00:30]} Kd7 {[%emt 0:00:20]} 70. Kb7 {[%emt 0:01:28]} Rc7+ {[%emt 0:00:11]} 71. Kb8 {[%emt 0:00:12]} Rc8+ {[%emt 0:01:30]} 72. Ka7 {[%emt 0:00:10]} Rc7+ {[%emt 0:00:35]} 73. Rb7 {[%emt 0:00:44]} Kc8 {[%emt 0:00:30]} 74. a6 {[%emt 0:00:00]} Rc1 {[%emt 0:00:45]} 75. Kb6 {[%emt 0:00:57]} Rb1+ {[%emt 0:00:30]} 76. Ka7 {[%emt 0:00:30]} Rc1 {[%emt 0:00:00]} 77. Rb2 {[%emt 0:00:00]} Rc6 {[%emt 0:00:23]} 78. Rh2 {[%emt 0:00:30]} Rc1 {[%emt 0:00:06]} 79. Rh6 {[%emt 0:00:05]} Rb1 {[%emt 0:01:07]} 80. Rc6+ {[%emt 0:00:41]} Kd7 {[%emt 0:00:05]} 81. Rb6 {[%emt 0:00:30]} Rc1 {[%emt 0:00:14]} 82. Rb7+ {[%emt 0:00:10]} Kc8 {[%emt 0:00:09]} 83. Rb5 {[%emt 0:00:03]} Rc6 {[%emt 0:00:36]} 84. Rb7 {[%emt 0:00:39]} Rc1 {[%emt 0:00:19]} 85. Rb4 {[%emt 0:00:49]} Rc6 {[%emt 0:00:12]} 86. Rg4 {[%emt 0:00:11]} Rc1 {[%emt 0:00:11]} 87. Rg8+ {[%emt 0:00:00]} Kc7 {[%emt 0:00:34]} 88. Rh8 {[%emt 0:00:04]} Rb1 {[%emt 0:00:17]} 89. Rh2 {[%emt 0:00:11]} Rb3 {[%emt 0:00:12]} 90. Rc2+ {[%emt 0:00:30]} Kd7 {[%emt 0:00:00]} 91. Rc5 {[%emt 0:00:04]} Kd6 {[%emt 0:00:11]} 92. Rc8 {[%emt 0:00:30]} Kd7 {[%emt 0:00:00]} 93. Rb8 {[%emt 0:00:08]} Ra3 {[%emt 0:00:00]} 94. Rb1 {[%emt 0:00:23]} Kc7 {[%emt 0:00:26]} 95. Rc1+ {[%emt 0:00:35]} Kd7 {[%emt 0:00:05]} 96. Kb6 {[%emt 0:00:00]} Rb3+ {[%emt 0:00:32]} 97. Ka5 {[%emt 0:00:53]} Ra3+ {[%emt 0:00:05]} 98. Kb5 {[%emt 0:00:00]} Kd8 {[%emt 0:00:24]} 99. Rc4 {[%emt 0:00:14]} Kd7 {[%emt 0:00:30]} 100. Kb6 {[%emt 0:03:58]} Rb3+ {[%emt 0:00:08]} 101. Ka5 {[%emt 0:00:36]} Ra3+ {[%emt 0:00:10]} 102. Kb5 {[%emt 0:00:00]} Kd8 {[%emt 0:00:23]} 103. Kb6 {[%emt 0:00:08]} Rb3+ {[%emt 0:00:49]} 104. Kc6 {[%emt 0:00:17]} Ra3 {[%emt 0:00:00]} 105. Kb7 {[%emt 0:02:14]} Rb3+ {[%emt 0:00:14]} 106. Ka8 {[%emt 0:00:00]} Kd7 {[%emt 0:00:18]} 107. Rh4 {[%emt 0:00:17]} Kc7 {[%emt 0:00:00]} 108. Rh1 {[%emt 0:01:06]} Rb2 {[%emt 0:00:29]} 109. Rc1+ {[%emt 0:00:09]} Kd7 {[%emt 0:00:00]} 110. Ka7 {[%emt 0:00:31]} Rb3 {[%emt 0:00:04]} 111. Rg1 {[%emt 0:00:15]} Rb2 {[%emt 0:00:30]} 112. Rg7+ {[%emt 0:00:02]} Kc8 {[%emt 0:00:00]} 113. Rb7 {[%emt 0:00:30]} Ra2 {[%emt 0:00:04]} 114. Rb5 {[%emt 0:00:09]} Kc7 {[%emt 0:00:09]} 115. Rc5+ {[%emt 0:00:22]} Kd6 {[%emt 0:00:35]} 116. Rc1 {[%emt 0:00:00]} Kd7 {[%emt 0:00:06]} 117. Kb7 {[%emt 0:00:00]} Rb2+ {[%emt 0:00:30]} 118. Ka8 {[%emt 0:00:00]} Ra2 {[%emt 0:00:30]} 119. a7 {[%emt 0:00:00]} Rb2 {[%emt 0:00:00]} 120. Rh1 {[%emt 0:00:00]} Kc7 {[%emt 0:00:00]} 121. Rh7+ {[%emt 0:00:00]} Kc8 {[%emt 0:00:00]} 122. Rh6 {[%emt 0:00:00]} Kc7 {[%emt 0:00:00]} 123. Rh5 {[%emt 0:00:00]} Kc6 {[%emt 0:00:00]} 124. Rh8 {[%emt 0:00:00]} Kc7 {[%emt 0:00:00]} 125. Rh3 {[%emt 0:00:00]} Kc8 {[%emt 0:00:00]} 126. Rh1 {[%emt 0:00:02]} Kc7 {[%emt 0:00:00]} 127. Rd1 {[%emt 0:00:19]} Kc8 {[%emt 0:00:00]} 128. Rh1 {[%emt 0:00:00]} Kc7 {[%emt 0:00:09]} 129. Rh6 {[%emt 0:00:00]} Kc8 {[%emt 0:00:00]} 130. Rh5 {[%emt 0:00:17]} Kc7 {[%emt 0:00:24]} 131. Rh4 {[%emt 0:00:00]} Rb1 {[%emt 0:00:00]} 132. Rc4+ {[%emt 0:00:00]} Kd7 {[%emt 0:00:00]} 133. Rg4 {[%emt 0:00:36]} Rb2 {[%emt 0:00:30]} 134. Rg7+ {[%emt 0:00:07]} Kc8 {[%emt 0:00:00]} 135. Rg8+ {[%emt 0:00:00]} Kc7 {[%emt 0:00:00]} 136. Rb8 {[%emt 0:00:00]} Ra2 {[%emt 0:00:00]} 137. Rb1 {[%emt 0:00:33]} Kc8 {[%emt 0:00:00]} 138. Rc1+ {[%emt 0:00:24]} Kd7 {[%emt 0:00:30]} 139. Kb7 {[%emt 0:00:16]} Rb2+ {[%emt 0:00:00]} 140. Ka6 {[%emt 0:00:16]} Ra2+ {[%emt 0:00:00]} 141. Kb6 {[%emt 0:00:09]} Rb2+ {[%emt 0:00:00]} 142. Kc5 {[%emt 0:01:25]} Ra2 {[%emt 0:00:00]} 143. Rh1 {[%emt 0:00:00]} Rc2+ {[%emt 0:00:30]} 144. Kb4 {[%emt 0:02:35]} Rc8 {[%emt 0:03:30]} 145. Kb5 {[%emt 0:00:19]} Rg8 {[%emt 0:01:30]} 146. Kb6 {[%emt 0:00:38]} Kd6 {[%emt 0:00:30]} 147. Rh7 {[%emt 0:00:34]} Rc8 {[%emt 0:00:30]} 148. Kb7 {[%emt 0:00:24]} 1-0

[Event "Turkish Cup 2024"]
[Site "Denizli"]
[Date "2024.08.04"]
[Round "9"]
[White "Tezcan, Alper"]
[Black "Tektas, Onur Efe"]
[Result "0-1"]
[ECO "B45"]
[WhiteElo "1989"]
[BlackElo "1851"]
[Annotator "RC"]
[PlyCount "138"]
[EventDate "2024.08.01"]
[EventType "swiss"]
[EventCountry "TUR"]
[SourceTitle "playchess.com"]
[Source "ChessBase"]
[SourceQuality "1"]
[TimeControl "5400+30"]

1. e4 {[%emt 0:06:00]} c5 {[%emt 0:04:00]} 2. Nf3 {[%emt 0:00:30]} e6 {[%emt 0:00:30]} 3. d4 {[%emt 0:00:30]} cxd4 {[%emt 0:00:00]} 4. Nxd4 {[%emt 0:00:00]} Nf6 {[%emt 0:00:00]} 5. Nc3 {[%emt 0:00:00]} Nc6 {[%emt 0:00:30]} 6. Qd3 {[%emt 0:00:00]} d5 {[%emt 0:02:30]} 7. exd5 {[%emt 0:00:00]} Nxd5 {[%emt 0:00:00]} 8. Nxc6 {[%emt 0:08:30]} bxc6 {[%emt 0:00:00]} 9. Ne4 {[%emt 0:02:30]} f5 {[%emt 0:06:30]} 10. Nd2 {[%emt 0:04:30]} Be7 {[%emt 0:01:30]} 11. Nf3 {[%emt 0:04:30]} Bf6 {[%emt 0:03:30]} 12. c4 {[%emt 0:12:30]} Nb4 {[%emt 0:01:30]} 13. Qb3 {[%emt 0:00:30]} Qb6 {[%emt 0:05:30]} 14. Be3 {[%emt 0:05:30]} c5 {[%emt 0:00:30]} 15. Be2 {[%emt 0:00:30]} O-O {[%emt 0:07:30]} 16. O-O {[%emt 0:04:30]} Bb7 {[%emt 0:01:30]} 17. Bf4 {[%emt 0:12:30]} Be4 {[%emt 0:05:30]} 18. Ne5 {[%emt 0:18:42]} Nc2 {[%emt 0:04:30]} 19. Rad1 {[%emt 0:04:08]} Qxb3 {[%emt 0:09:30]} 20. axb3 {[%emt 0:00:07]} Nd4 {[%emt 0:01:30]} 21. Bd3 {[%emt 0:01:40]} g5 {[%emt 0:01:30]} 22. Bxe4 {[%emt 0:00:45]} fxe4 {[%emt 0:00:00]} 23. Nd7 {[%emt 0:00:20]} gxf4 {[%emt 0:00:00]} 24. Nxf8 {[%emt 0:00:00]} Kxf8 {[%emt 0:03:30]} 25. Rfe1 {[%emt 0:00:37]} Rb8 {[%emt 0:01:30]} 26. Rxe4 {[%emt 0:00:30]} Rxb3 {[%emt 0:00:00]} 27. Kf1 {[%emt 0:00:00]} e5 {[%emt 0:01:00]} 28. Ra1 {[%emt 0:00:14]} Rxb2 {[%emt 0:02:30]} 29. Rxa7 {[%emt 0:00:22]} h5 {[%emt 0:00:30]} 30. Re1 {[%emt 0:07:36]} Rc2 {[%emt 0:04:30]} 31. Rb1 {[%emt 0:01:11]} Be7 {[%emt 0:00:30]} 32. Re1 {[%emt 0:01:33]} Bf6 {[%emt 0:03:30]} 33. Rb1 {[%emt 0:00:10]} Ke8 {[%emt 0:00:30]} 34. f3 {[%emt 0:01:05]} Rxc4 {[%emt 0:01:30]} 35. Rb8+ {[%emt 0:01:01]} Bd8 {[%emt 0:00:30]} 36. Rh7 {[%emt 0:00:00]} Rc1+ {[%emt 0:00:30]} 37. Kf2 {[%emt 0:00:00]} Rc2+ {[%emt 0:00:30]} 38. Kf1 {[%emt 0:01:45]} Ne6 {[%emt 0:00:00]} 39. Rxh5 {[%emt 0:02:40]} Kd7 {[%emt 0:01:00]} 40. Rb1 {[%emt 0:00:59]} Bc7 {[%emt 0:01:30]} 41. Rh7+ {[%emt 0:00:12]} Kc6 {[%emt 0:01:30]} 42. h4 {[%emt 0:00:27]} c4 {[%emt 0:00:30]} 43. Rd1 {[%emt 0:01:33]} Nd4 {[%emt 0:01:30]} 44. h5 {[%emt 0:01:39]} c3 {[%emt 0:00:30]} 45. h6 {[%emt 0:00:10]} Ra2 {[%emt 0:05:30]} 46. Rf7 {[%emt 0:00:33]} c2 {[%emt 0:00:30]} 47. Rc1 {[%emt 0:00:01]} Ra8 {[%emt 0:02:30]} 48. h7 {[%emt 0:00:05]} Ba5 {[%emt 0:01:22]} 49. Ra7 {[%emt 0:00:26]} Rh8 {[%emt 0:05:29]} 50. Rxa5 {[%emt 0:00:30]} Rxh7 {[%emt 0:00:09]} 51. Kf2 {[%emt 0:00:01]} Kd6 {[%emt 0:00:37]} 52. Ra3 {[%emt 0:01:23]} Rc7 {[%emt 0:01:03]} 53. Ke1 {[%emt 0:00:50]} Kd5 {[%emt 0:01:37]} 54. Kd2 {[%emt 0:00:33]} Rg7 {[%emt 0:01:38]} 55. Rg1 {[%emt 0:00:31]} Rb7 {[%emt 0:01:04]} 56. Rc1 {[%emt 0:00:40]} Rg7 {[%emt 0:03:55]} 57. Rg1 {[%emt 0:00:07]} e4 {[%emt 0:00:41]} 58. Ra5+ {[%emt 0:00:56]} Kc4 {[%emt 0:00:10]} 59. Ra4+ {[%emt 0:00:17]} Kc5 {[%emt 0:02:12]} 60. fxe4 {[%emt 0:00:49]} f3 {[%emt 0:00:07]} 61. g4 {[%emt 0:00:16]} f2 {[%emt 0:01:42]} 62. Rf1 {[%emt 0:00:17]} Rxg4 {[%emt 0:00:08]} 63. Ra5+ {[%emt 0:00:48]} Kb4 {[%emt 0:00:40]} 64. Rd5 {[%emt 0:00:29]} Rg1 {[%emt 0:02:58]} 65. Rxd4+ {[%emt 0:00:30]} Kb3 {[%emt 0:00:00]} 66. Rd3+ {[%emt 0:00:07]} Kb2 {[%emt 0:00:09]} 67. Rc3 {[%emt 0:00:20]} Rxf1 {[%emt 0:00:44]} 68. Rxc2+ {[%emt 0:00:04]} Kb1 {[%emt 0:00:19]} 69. Ke2 {[%emt 0:00:30]} Rh1 {[%emt 0:00:00]} 0-1

[Event "Turkish Cup 2024"]
[Site "Denizli"]
[Date "2024.08.04"]
[Round "9"]
[White "Bulgurlu, Okan"]
[Black "Topal, Hasan Gokmen"]
[Result "1/2-1/2"]
[ECO "B20"]
[WhiteElo "1964"]
[BlackElo "1905"]
[Annotator "RC"]
[PlyCount "82"]
[EventDate "2024.08.01"]
[EventType "swiss"]
[EventCountry "TUR"]
[SourceTitle "playchess.com"]
[Source "ChessBase"]
[SourceQuality "1"]
[TimeControl "5400+30"]

1. e4 {[%emt 0:05:00]} c5 {[%emt 0:01:00]} 2. b3 {[%emt 0:00:30]} g6 {[%emt 0:01:30]} 3. Bb2 {[%emt 0:00:30]} Nf6 {[%emt 0:00:30]} 4. e5 {[%emt 0:00:00]} Nd5 {[%emt 0:00:00]} 5. Qf3 {[%emt 0:00:00]} Nb4 {[%emt 0:00:00]} 6. Bc4 {[%emt 0:00:30]} e6 {[%emt 0:00:30]} 7. Na3 {[%emt 0:00:00]} N8c6 {[%emt 0:00:30]} 8. Qg3 {[%emt 0:05:00]} Nd4 {[%emt 0:06:30]} 9. O-O-O {[%emt 0:09:30]} a6 {[%emt 0:08:30]} 10. Ne2 {[%emt 0:07:30]} b5 {[%emt 0:20:30]} 11. c3 {[%emt 0:27:30]} bxc4 {[%emt 0:25:30]} 12. cxd4 {[%emt 0:00:30]} Nd3+ {[%emt 0:04:30]} 13. Kb1 {[%emt 0:00:30]} Nxb2 {[%emt 0:00:30]} 14. Kxb2 {[%emt 0:00:00]} cxb3 {[%emt 0:00:00]} 15. axb3 {[%emt 0:05:00]} Bb7 {[%emt 0:02:00]} 16. h4 {[%emt 0:11:30]} cxd4 {[%emt 0:04:30]} 17. Nc4 {[%emt 0:00:30]} Bd5 {[%emt 0:00:30]} 18. Ra1 {[%emt 0:14:30]} h5 {[%emt 0:04:43]} 19. Qd3 {[%emt 0:00:21]} d6 {[%emt 0:07:19]} 20. Qxd4 {[%emt 0:03:13]} Bg7 {[%emt 0:00:25]} 21. Nc3 {[%emt 0:04:01]} Bxc4 {[%emt 0:02:16]} 22. Qxc4 {[%emt 0:00:11]} O-O {[%emt 0:00:00]} 23. Rxa6 {[%emt 0:00:29]} dxe5 {[%emt 0:01:31]} 24. Kc2 {[%emt 0:00:20]} Rxa6 {[%emt 0:01:32]} 25. Qxa6 {[%emt 0:00:30]} Qd4 {[%emt 0:00:00]} 26. f3 {[%emt 0:01:48]} Rd8 {[%emt 0:00:06]} 27. Qe2 {[%emt 0:00:25]} Bh6 {[%emt 0:01:19]} 28. Rd1 {[%emt 0:00:07]} Qxh4 {[%emt 0:01:21]} 29. Qxe5 {[%emt 0:00:18]} Qb4 {[%emt 0:00:59]} 30. Qb5 {[%emt 0:00:54]} Qd4 {[%emt 0:00:28]} 31. Qc4 {[%emt 0:00:13]} Qf2 {[%emt 0:00:21]} 32. Qe2 {[%emt 0:00:46]} Qb6 {[%emt 0:02:20]} 33. g3 {[%emt 0:00:23]} Rb8 {[%emt 0:00:39]} 34. Rb1 {[%emt 0:00:48]} Rd8 {[%emt 0:01:01]} 35. f4 {[%emt 0:00:46]} Bg7 {[%emt 0:00:14]} 36. b4 {[%emt 0:00:31]} Qa7 {[%emt 0:00:12]} 37. Qe3 {[%emt 0:00:36]} Bd4 {[%emt 0:00:26]} 38. Qd3 {[%emt 0:00:52]} Rc8 {[%emt 0:00:28]} 39. Kb3 {[%emt 0:00:36]} Ra8 {[%emt 0:00:52]} 40. Kc2 {[%emt 0:01:31]} Rc8 {[%emt 0:00:09]} 41. Kb3 {[%emt 0:00:58]} Ra8 {[%emt 0:00:06]} 1/2-1/2

[Event "Turkish Cup 2024"]
[Site "Denizli"]
[Date "2024.08.04"]
[Round "9"]
[White "Celik, Ege Yigit"]
[Black "Dulger, Batuhan Ihsan"]
[Result "1-0"]
[ECO "A28"]
[WhiteElo "1949"]
[BlackElo "1667"]
[Annotator "RC"]
[PlyCount "101"]
[EventDate "2024.08.01"]
[EventType "swiss"]
[EventCountry "TUR"]
[SourceTitle "playchess.com"]
[Source "ChessBase"]
[SourceQuality "1"]
[TimeControl "5400+30"]

1. c4 {[%emt 0:01:00]} e5 {[%emt 0:01:00]} 2. Nc3 {[%emt 0:00:00]} Nf6 {[%emt 0:00:30]} 3. Nf3 {[%emt 0:00:00]} Nc6 {[%emt 0:00:00]} 4. e4 {[%emt 0:00:00]} Bc5 {[%emt 0:02:00]} 5. Nxe5 {[%emt 0:00:00]} Nxe5 {[%emt 0:00:30]} 6. d4 {[%emt 0:00:30]} Bd6 {[%emt 0:04:30]} 7. c5 {[%emt 0:00:00]} Bxc5 {[%emt 0:02:30]} 8. dxe5 {[%emt 0:00:00]} Ng8 {[%emt 0:00:30]} 9. Qg4 {[%emt 0:01:30]} Kf8 {[%emt 0:04:30]} 10. Qg3 {[%emt 0:05:30]} d6 {[%emt 0:00:30]} 11. Bc4 {[%emt 0:05:30]} Qe8 {[%emt 0:04:30]} 12. Bf4 {[%emt 0:17:30]} Be6 {[%emt 0:04:30]} 13. Bxe6 {[%emt 0:05:30]} Qxe6 {[%emt 0:00:30]} 14. O-O {[%emt 0:01:30]} h5 {[%emt 0:16:30]} 15. exd6 {[%emt 0:08:30]} h4 {[%emt 0:00:30]} 16. Qd3 {[%emt 0:04:30]} Bxd6 {[%emt 0:06:30]} 17. Bxd6+ {[%emt 0:01:30]} Qxd6 {[%emt 0:00:30]} 18. Qxd6+ {[%emt 0:01:30]} cxd6 {[%emt 0:00:00]} 19. Rfd1 {[%emt 0:00:00]} Rd8 {[%emt 0:00:00]} 20. Nb5 {[%emt 0:00:00]} d5 {[%emt 0:05:30]} 21. exd5 {[%emt 0:14:30]} Rh5 {[%emt 0:00:00]} 22. Nc3 {[%emt 0:00:30]} Nf6 {[%emt 0:01:00]} 23. Rd4 {[%emt 0:00:30]} a6 {[%emt 0:04:30]} 24. Rad1 {[%emt 0:01:30]} Ne8 {[%emt 0:01:30]} 25. g4 {[%emt 0:01:30]} hxg3 {[%emt 0:00:30]} 26. hxg3 {[%emt 0:00:30]} Nd6 {[%emt 0:00:00]} 27. Re1 {[%emt 0:01:30]} Nb5 {[%emt 0:02:00]} 28. Nxb5 {[%emt 0:00:30]} axb5 {[%emt 0:00:30]} 29. d6 {[%emt 0:01:30]} Rc5 {[%emt 0:00:30]} 30. Re7 {[%emt 0:04:30]} b6 {[%emt 0:04:30]} 31. Rb7 {[%emt 0:02:30]} Rc6 {[%emt 0:00:30]} 32. d7 {[%emt 0:01:30]} Ke7 {[%emt 0:00:00]} 33. Rb4 {[%emt 0:01:30]} Rxd7 {[%emt 0:01:00]} 34. Rxd7+ {[%emt 0:01:53]} Kxd7 {[%emt 0:00:30]} 35. Rxb5 {[%emt 0:00:16]} Kc7 {[%emt 0:00:30]} 36. Rb3 {[%emt 0:00:30]} Rc1+ {[%emt 0:01:30]} 37. Kg2 {[%emt 0:00:41]} Ra1 {[%emt 0:00:00]} 38. a3 {[%emt 0:00:17]} Kc6 {[%emt 0:00:00]} 39. Kf3 {[%emt 0:00:30]} Kc5 {[%emt 0:00:30]} 40. Rc3+ {[%emt 0:00:30]} Kd6 {[%emt 0:00:30]} 41. Ke4 {[%emt 0:00:00]} Re1+ {[%emt 0:00:00]} 42. Kd3 {[%emt 0:01:02]} Rd1+ {[%emt 0:00:00]} 43. Kc4 {[%emt 0:00:27]} Rf1 {[%emt 0:00:30]} 44. Kb5 {[%emt 0:01:26]} Rxf2 {[%emt 0:00:30]} 45. b4 {[%emt 0:00:00]} Kd5 {[%emt 0:00:30]} 46. Kxb6 {[%emt 0:00:47]} Kd4 {[%emt 0:00:00]} 47. Rc7 {[%emt 0:00:44]} Rf3 {[%emt 0:02:00]} 48. a4 {[%emt 0:00:46]} Rxg3 {[%emt 0:00:30]} 49. Rxf7 {[%emt 0:00:09]} Kc4 {[%emt 0:00:00]} 50. b5 {[%emt 0:00:43]} Rg6+ {[%emt 0:02:00]} 51. Kc7 {[%emt 0:02:13]} 1-0

[Event "Turkish Cup 2024"]
[Site "Denizli"]
[Date "2024.08.04"]
[Round "9"]
[White "Saygin, Nurettin"]
[Black "Turk, Talha Gunes"]
[Result "0-1"]
[ECO "B45"]
[WhiteElo "1937"]
[BlackElo "1776"]
[Annotator "RC"]
[PlyCount "80"]
[EventDate "2024.08.01"]
[EventType "swiss"]
[EventCountry "TUR"]
[SourceTitle "playchess.com"]
[Source "ChessBase"]
[SourceQuality "1"]
[TimeControl "5400+30"]

1. e4 {[%emt 0:01:00]} c5 {[%emt 0:02:00]} 2. Nf3 {[%emt 0:00:30]} e6 {[%emt 0:00:30]} 3. d4 {[%emt 0:00:00]} cxd4 {[%emt 0:00:30]} 4. Nxd4 {[%emt 0:00:00]} Nf6 {[%emt 0:00:00]} 5. Nc3 {[%emt 0:00:30]} Nc6 {[%emt 0:00:00]} 6. Ndb5 {[%emt 0:04:30]} d6 {[%emt 0:00:00]} 7. Bg5 {[%emt 0:01:30]} a6 {[%emt 0:01:00]} 8. Bxf6 {[%emt 0:00:30]} gxf6 {[%emt 0:00:30]} 9. Na3 {[%emt 0:02:30]} b5 {[%emt 0:00:30]} 10. Ncb1 {[%emt 0:02:30]} Bg7 {[%emt 0:05:30]} 11. c3 {[%emt 0:01:30]} O-O {[%emt 0:08:30]} 12. g3 {[%emt 0:03:30]} Bb7 {[%emt 0:06:30]} 13. Bg2 {[%emt 0:00:30]} Ne7 {[%emt 0:00:30]} 14. O-O {[%emt 0:00:30]} f5 {[%emt 0:00:00]} 15. exf5 {[%emt 0:01:30]} Bxg2 {[%emt 0:00:00]} 16. Kxg2 {[%emt 0:00:30]} Nxf5 {[%emt 0:00:30]} 17. Nc2 {[%emt 0:00:30]} Qb6 {[%emt 0:12:30]} 18. Nd2 {[%emt 0:06:30]} Kh8 {[%emt 0:04:30]} 19. Qf3 {[%emt 0:03:30]} Ne7 {[%emt 0:18:30]} 20. Rfd1 {[%emt 0:12:30]} f5 {[%emt 0:00:00]} 21. a4 {[%emt 0:02:30]} d5 {[%emt 0:08:00]} 22. a5 {[%emt 0:03:30]} Qd6 {[%emt 0:02:30]} 23. Nb3 {[%emt 0:10:30]} f4 {[%emt 0:00:30]} 24. Qg4 {[%emt 0:00:30]} Rf6 {[%emt 0:04:30]} 25. Nb4 {[%emt 0:06:30]} Raf8 {[%emt 0:04:30]} 26. Rd2 {[%emt 0:01:30]} Bh6 {[%emt 0:02:09]} 27. Rc2 {[%emt 0:00:30]} Rg6 {[%emt 0:00:34]} 28. Qh3 {[%emt 0:04:30]} Nf5 {[%emt 0:01:41]} 29. Kh1 {[%emt 0:03:30]} Rfg8 {[%emt 0:02:57]} 30. Rg1 {[%emt 0:00:30]} fxg3 {[%emt 0:00:17]} 31. fxg3 {[%emt 0:01:30]} Bf4 {[%emt 0:02:42]} 32. g4 {[%emt 0:04:30]} Rh6 {[%emt 0:00:37]} 33. Qf3 {[%emt 0:00:30]} Bxh2 {[%emt 0:00:35]} 34. g5 {[%emt 0:00:30]} Ng3+ {[%emt 0:01:18]} 35. Rxg3 {[%emt 0:00:30]} Bxg3+ {[%emt 0:01:25]} 36. gxh6 {[%emt 0:00:30]} e5 {[%emt 0:00:00]} 37. Qh5 {[%emt 0:06:12]} Qf8 {[%emt 0:01:40]} 38. Rg2 {[%emt 0:02:28]} Rg6 {[%emt 0:07:03]} 39. Qd1 {[%emt 0:01:40]} Qxh6+ {[%emt 0:00:39]} 40. Kg1 {[%emt 0:00:12]} Qe3+ {[%emt 0:00:00]} 0-1